Cogmind - Beta 12 @@@ ROGUE MODE // 2023.05.04 @ 00:13:44 Player: Mr Goldstein Result: Destroyed by as-37150 with Assembled Focal Cannon Performance ------------- Evolutions (3) 1500 Regions Visited (10) 2000 Robots Destroyed (7) 35 Value Destroyed (89) 89 Prototype IDs (27) 540 Alien Tech Used (0) 0 Bonus (2070) 2070 TOTAL SCORE: 6234 Bonus ------- Pacifist 634 Follower Combat Kills 74 Aligned with FarCom 300 Destroyed Z-Imprinter 1000 Triggered Deep Caves Wall 500 Exposed GOLEM Chamber 500 Friendly Fire -938 Cogmind --------- Core Integrity 0/700 Matter 290/300 Energy 100/100 System Corruption 0% Temperature Cool (12) Movement Core (50) Location -7/Deep Caves Parts ------- > --- POWER (2) -------- (None) > --- PROPULSION (4) --- (None) > --- UTILITY (5) ------ GOLEM Unit > --- WEAPON (2) ------- (None) > --- INVENTORY (5) ---- Zionite Light DM Reactor Compact Battery (200) GOLEM Unit Peak State ------------ > --- POWER ------------ Light Ion Engine Zionite Light DM Reactor > --- PROPULSION ------- Potential Leg Potential Leg > --- UTILITY ---------- Experimental Heat Sink Improved Utility Shielding Improved Light Armor Plating Hacking Suite System Shield > --- WEAPON ----------- (None) > --- INVENTORY -------- Compact Battery Tactical Coordination Suite Reaction Control System Heavy Flail [Rating: 49] Favorites ----------- Power Light Ion Engine Engine Light Ion Engine Reactor Zionite Light DM Reactor Propulsion VTOL Module Treads Light Treads Leg Potential Leg Flight Unit VTOL Module Utility System Shield Device Reaction Control System Storage Compact Battery Hackware System Shield Protection Improved Utility Shielding Weapon Heavy Flail Energy Cannon Neutron Cannon Launcher Improved Grenade Launcher Impact Weapon Heavy Flail Build | -11 -10 -10 -10 -9 -8 -7 -7 -7 -7 -7 ------- Run | Jun Mat Min Exi Min Mat Fac Low Low Zio Dee Slots Evolved 6 | . . . . . 4 2 . . . . Power 1 | . . . . . 1 . . . . . Propulsion 2 | . . . . . 2 . . . . . Utility 3 | . . . . . 1 2 . . . . Weapon . | . . . . . . . . . . . Parts Attached 35 | 2 . . . . . 8 2 3 3 17 Power 3 | . . . . . . 1 . . . 2 Engine 1 | . . . . . . 1 . . . . Core . | . . . . . . . . . . . Reactor 2 | . . . . . . . . . . 2 Propulsion 13 | 2 . . . . . 3 . 1 1 6 Treads 2 | 2 . . . . . . . . . . Leg 2 | . . . . . . . . . . 2 Wheel . | . . . . . . . . . . . Hover . | . . . . . . . . . . . Flight 9 | . . . . . . 3 . 1 1 4 Utility 13 | . . . . . . 3 1 1 1 7 Device 6 | . . . . . . . . . 1 5 Storage 1 | . . . . . . . . . . 1 Processor . | . . . . . . . . . . . Hackware 3 | . . . . . . 2 . 1 . . Protection 3 | . . . . . . 1 1 . . 1 Artifact . | . . . . . . . . . . . Weapon 6 | . . . . . . 1 1 1 1 2 Energy Gun . | . . . . . . . . . . . Energy Cannon 1 | . . . . . . . . . . 1 Ballistic Gun . | . . . . . . . . . . . Ballistic Cannon . | . . . . . . . . . . . Launcher 2 | . . . . . . . 1 1 . . Special Weapon . | . . . . . . . . . . . Impact Weapon 3 | . . . . . . 1 . . 1 1 Slashing Weapon . | . . . . . . . . . . . Piercing Weapon . | . . . . . . . . . . . Special Melee Weapon . | . . . . . . . . . . . Unidentified Prototypes 4 | . . . . . . . . . . 4 Parts Lost 8 | . . . . . 1 . . 1 . 6 Power 1 | . . . . . . . . . . 1 Propulsion 6 | . . . . . 1 . . 1 . 4 Utility 1 | . . . . . . . . . . 1 Weapon . | . . . . . . . . . . . Highest Loss Streak 2 | . . . . . 1 . . 1 . 2 To Critical Strikes . | . . . . . . . . . . . Average Slot Usage (%) 54 | . 28 28 28 . 15 36 67 61 80 54 Engine 3 | . . . . . . 4 7 7 7 2 Treads 3 | . 28 28 28 . 15 . . . . . Leg 4 | . . . . . . . . . . 8 Flight 12 | . . . . . . 19 23 19 29 6 Device 2 | . . . . . . . . . 5 3 Hackware 10 | . . . . . . 5 15 17 17 11 Protection 10 | . . . . . . . 10 15 15 13 Impact Weapon 4 | . . . . . . 4 4 . 4 5 Naked Turns 19 | . . . . . 6 13 . . . . Heaviest Build 18 | . . . . . . 8 14 14 12 18 Greatest Support 60 | 20 3 3 3 3 3 16 16 16 22 60 Greatest Overweight (x) 1 | . . . . . . . . . . 1 Average Overweight (x) . | . . . . . . . . . . . Largest Inventory Capacity 5 | 5 5 5 5 5 5 5 5 5 5 5 Average Capacity 5 | 5 5 5 5 5 5 5 5 5 5 5 Most Carried 5 | . . . 2 2 3 5 5 5 5 5 Average Carried 3 | . . . . 2 2 4 4 4 4 2 Final Capacity 5 | 5 5 5 5 5 5 5 5 5 5 5 Final Carried 5 | . . . 2 2 3 5 5 5 4 4 Class Distribution -------------------- 36% | Hacker-Mutant 29% | Hacker-Sprinter 21% | Mutant 8% | Sprinter 3% | Scavenger-Sprinter Dominant Class ---------------- Mutant | -10/Materials Mutant | -10/Mines Mutant | -10/Exiles Mutant | -9/Mines Mutant | -8/Materials Sprinter | -7/Factory Hacker-Sprinter | -7/Lower Caves Hacker-Sprinter | -7/Lower Caves Hacker-Sprinter | -7/Zion Hacker-Mutant | -7/Deep Caves Resources | -11 -10 -10 -10 -9 -8 -7 -7 -7 -7 -7 ----------- Run | Jun Mat Min Exi Min Mat Fac Low Low Zio Dee Matter Collected 541 | 220 . . . . . 50 33 30 68 140 Remotely . | . . . . . . . . . . . Salvage Created 412 | . . . . . . 98 . 28 122 164 Parts 12 | . . . . . . 3 . 6 . 3 Haulers Intercepted . | . . . . . . . . . . . Recyclers Shooed . | . . . . . . . . . . . Parts Field Recycled . | . . . . . . . . . . . Retrieved Matter . | . . . . . . . . . . . Parts Self-Destructed 3 | . . . . . . . . 3 . . Prevented . | . . . . . . . . . . . Kills | -11 -10 -10 -10 -9 -8 -7 -7 -7 -7 -7 ------- Run | Jun Mat Min Exi Min Mat Fac Low Low Zio Dee Combat Hostiles Destroyed 9 | . . . . . . . . 3 . 6 Melee 6 | . . . . . . . . . . 6 AOE 3 | . . . . . . . . 3 . . Classes Destroyed 5 | . . . . . . 2 . 1 . 2 Worker 2 | . . . . . . 2 . . . . Recycler 1 | . . . . . . 1 . . . . Swarmer 3 | . . . . . . . . 3 . . Enhanced Grunt 1 | . . . . . . . . . . 1 Assembled 6 | . . . . . . . . . . 6 Best Kill Streak 3 | . . . . . . 3 . 3 . 3 Combat Bots Only 3 | . . . . . . . . 3 . 3 Max Kills in Single Turn 2 | . . . . . . 1 . 2 . 1 Gunslinging . | . . . . . . . . . . . Exploded 2 | . . . . . . . . 2 . . Melee 1 | . . . . . . . . . . 1 Uniques/NPCs Destroyed 1 | . . . . . . . . . . 1 Z-Imprinter (-7/Deep Caves) Combat | -11 -10 -10 -10 -9 -8 -7 -7 -7 -7 -7 -------- Run | Jun Mat Min Exi Min Mat Fac Low Low Zio Dee Damage Taken 1926 | . . 65 . 42 382 . 62 141 . 1234 Core 918 | . . 32 . 10 168 . 29 . . 679 Absorbed by Shields . | . . . . . . . . . . . Redirected to Shielding 75 | . . . . . . . . . . 75 Core Remaining (%) 84 | 100 . . . 83 69 . . . . . Volleys Fired 2 | . . . . . . . . 2 . . Largest 1 | . . . . . . . . 1 . . Hottest 36 | . . . . . . . . 36 . . Shots Fired 2 | . . . . . . . . 2 . . Gun . | . . . . . . . . . . . Cannon . | . . . . . . . . . . . Launcher 2 | . . . . . . . . 2 . . Special . | . . . . . . . . . . . Kinetic . | . . . . . . . . . . . Thermal . | . . . . . . . . . . . Explosive 2 | . . . . . . . . 2 . . Electromagnetic . | . . . . . . . . . . . Robot Hit Streak 2 | . . . . . . . . 2 . . Robot Miss Streak . | . . . . . . . . . . . Penetration Max . | . . . . . . . . . . . Secondary Targets . | . . . . . . . . . . . Shots Hit Robots 19 | . . . . . . 3 . 2 3 11 Core Hits 9 | . . . . . . 1 . 2 1 5 Critical Kills . | . . . . . . . . . . . Critical Parts Destroyed 2 | . . . . . . . . . . 2 Critical Strikes 2 | . . . . . . . . . . 2 Smash 2 | . . . . . . . . . . 2 Melee Attacks 54 | . . . . . . 10 . . 12 32 Impact 54 | . . . . . . 10 . . 12 32 Slashing . | . . . . . . . . . . . Piercing . | . . . . . . . . . . . Sneak Attacks 7 | . . . . . . 3 . . . 4 Combat Hostiles . | . . . . . . . . . . . Follow-up Attacks . | . . . . . . . . . . . Damage Inflicted 1665 | . . . . . 21 382 . 246 216 800 Guns . | . . . . . . . . . . . Cannons . | . . . . . . . . . . . Explosions 246 | . . . . . . . . 246 . . Melee 1398 | . . . . . . 382 . . 216 800 Ramming 21 | . . . . . 21 . . . . . Kinetic . | . . . . . . . . . . . Thermal . | . . . . . . . . . . . Explosive 246 | . . . . . . . . 246 . . Electromagnetic . | . . . . . . . . . . . Impact 1398 | . . . . . . 382 . . 216 800 Slashing . | . . . . . . . . . . . Piercing . | . . . . . . . . . . . Highest Corruption . | . . . . . . . . . . . Average Corruption . | . . . . . . . . . . . Corruption Purged . | . . . . . . . . . . . Corruption Blocked . | . . . . . . . . . . . Overload Shots . | . . . . . . . . . . . Overflow Damage 554 | . . . . . . 185 . 23 118 228 Projectiles . | . . . . . . . . . . . Explosions 23 | . . . . . . . . 23 . . Melee 531 | . . . . . . 185 . . 118 228 Knockbacks 6 | . . . . . . 1 . . . 5 Impact 6 | . . . . . . 1 . . . 5 Kinetic . | . . . . . . . . . . . Secondary . | . . . . . . . . . . . Self-Inflicted Damage 9 | . . . . . 9 . . . . . Shots . | . . . . . . . . . . . Rammed 3 | . . . . . 3 . . . . . Targets Rammed 3 | . . . . . 3 . . . . . Kicked . | . . . . . . . . . . . Crushed . | . . . . . . . . . . . Highest Temperature 128 | . . . . . . . . . . 128 Average Temperature 59 | . . . . . . . . . . 59 Received Heat Transfer 102 | . . . . . 9 . . 18 . 75 Siege Activations . | . . . . . . . . . . . Robots Corrupted . | . . . . . . . . . . . Combat Hostiles . | . . . . . . . . . . . Parts Fried 1 | . . . . . . . . . . 1 Impact Corruptions 13 | . . . . . . 5 . . 4 4 Robots Melted . | . . . . . . . . . . . Combat Hostiles . | . . . . . . . . . . . Parts Melted . | . . . . . . . . . . . Heat Transferred . | . . . . . . . . . . . Parts Sabotaged . | . . . . . . . . . . . Parts Stolen 1 | . . . . . . . . 1 . . Parts Stripped . | . . . . . . . . . . . Power Chain Reactions . | . . . . . . . . . . . Missiles Intercepted . | . . . . . . . . . . . Alert | -11 -10 -10 -10 -9 -8 -7 -7 -7 -7 -7 ------- Run | Jun Mat Min Exi Min Mat Fac Low Low Zio Dee Peak Influence 168 | . 15 50 . . 155 168 . . . . Initial 70 | . . 5 . . . 70 . . . . Average 66 | . 12 22 . . 64 90 . . . . Maximum Alert Level . | . . . . . . . . . . . Low Security (%) 100 | 100 100 100 . 100 100 100 . . . . Level 1 . | . . . . . . . . . . . Level 2 . | . . . . . . . . . . . Level 3 . | . . . . . . . . . . . Level 4 . | . . . . . . . . . . . Level 5 . | . . . . . . . . . . . High Security . | . . . . . . . . . . . Max Security . | . . . . . . . . . . . Squads Dispatched 7 | . 2 . . . 2 2 . 1 . . Investigation 4 | . 1 . . . 1 2 . . . . Extermination . | . . . . . . . . . . . Reinforcement 2 | . 1 . . . 1 . . . . . Assault 1 | . . . . . . . . 1 . . Garrison . | . . . . . . . . . . . Intercept . | . . . . . . . . . . . Searches Triggered . | . . . . . . . . . . . Construction Impeded . | . . . . . . . . . . . Haulers Reinforced . | . . . . . . . . . . . Active Scanning Responses . | . . . . . . . . . . . Cargo Convoy Interrupts . | . . . . . . . . . . . Stealth | -11 -10 -10 -10 -9 -8 -7 -7 -7 -7 -7 --------- Run | Jun Mat Min Exi Min Mat Fac Low Low Zio Dee Distress Signals 1 | . 1 . . . . . . . . . Communications Jammed . | . . . . . . . . . . . Distress Signals . | . . . . . . . . . . . Times Spotted 94 | . 4 6 . 3 16 5 3 17 . 40 Peak Tracking Total 32 | . 4 6 . 3 13 8 3 13 . 32 Tactical Retreats 8 | . . 1 . . 2 1 . 3 . 1 Traps | -11 -10 -10 -10 -9 -8 -7 -7 -7 -7 -7 ------- Run | Jun Mat Min Exi Min Mat Fac Low Low Zio Dee Traps Triggered 1 | . 1 . . . . . . . . . Indirectly . | . . . . . . . . . . . Trap Hack Attempts . | . . . . . . . . . . . Triggered . | . . . . . . . . . . . Disarmed . | . . . . . . . . . . . Reprogrammed . | . . . . . . . . . . . Reused . | . . . . . . . . . . . Traps Extracted . | . . . . . . . . . . . Installed . | . . . . . . . . . . . Triggered 1 | . . . . . . . 1 . . . Machines | -11 -10 -10 -10 -9 -8 -7 -7 -7 -7 -7 ---------- Run | Jun Mat Min Exi Min Mat Fac Low Low Zio Dee Machines Disabled 2 | . . . . . . . . . . 2 Max in Single Turn 1 | . . . . . . . . . . 1 Machines Repaired . | . . . . . . . . . . . Machines Sabotaged . | . . . . . . . . . . . Overloaded Fab Kills . | . . . . . . . . . . . Hacking | -11 -10 -10 -10 -9 -8 -7 -7 -7 -7 -7 --------- Run | Jun Mat Min Exi Min Mat Fac Low Low Zio Dee Machines Accessed 5 | . . . 1 . 1 3 . . . . Terminals 2 | . . . . . . 2 . . . . Fabricators 1 | . . . . . . 1 . . . . Repair Stations . | . . . . . . . . . . . Recycling Units 1 | . . . . . 1 . . . . . Scanalyzers . | . . . . . . . . . . . Garrison Access . | . . . . . . . . . . . Total Hacks 11 | . . . 1 . 1 9 . . . . Successful 5 | . . . 1 . 1 3 . . . . Failed 6 | . . . . . . 6 . . . . Catastrophic 2 | . . . . . . 2 . . . . Database Lockouts . | . . . . . . . . . . . Manual 4 | . . . 1 . 1 1 . . 1 . Terminals 4 | . . . . . . 4 . . . . Fabricators 5 | . . . . . . 5 . . . . Repair Stations . | . . . . . . . . . . . Recycling Units 1 | . . . . . 1 . . . . . Scanalyzers . | . . . . . . . . . . . Garrison Access . | . . . . . . . . . . . Terminal Hacks 2 | . . . 1 . . 1 . . . . Branch Access Points 1 | . . . . . . 1 . . . . EX-Prototype ID Bank 1 | . . . 1 . . . . . . . Fabricator Hacks 1 | . . . . . . 1 . . . . Build 1 | . . . . . . 1 . . . . Repair Station Hacks . | . . . . . . . . . . . Recycling Unit Hacks . | . . . . . . . . . . . Scanalyzer . | . . . . . . . . . . . Garrison Access Hacks . | . . . . . . . . . . . Unauthorized Hacks 2 | . . . . . 1 1 . . . . Terminals . | . . . . . . . . . . . Fabricators 1 | . . . . . . 1 . . . . Liberate 1 | . . . . . . 1 . . . . Repair Stations . | . . . . . . . . . . . Recycling Units 1 | . . . . . 1 . . . . . Tunnel 1 | . . . . . 1 . . . . . Scanalyzers . | . . . . . . . . . . . Garrison Access . | . . . . . . . . . . . Data Cores Recovered . | . . . . . . . . . . . Used . | . . . . . . . . . . . Hacking Detections 2 | . . . . . . 2 . . . . Full Trace Events 2 | . . . . . . 2 . . . . Feedback Events . | . . . . . . . . . . . Feedback Blocked . | . . . . . . . . . . . Robot Schematics Acquired 4 | . . . . . . . . . 4 . Robots Built . | . . . . . . . . . . . Authchips . | . . . . . . . . . . . Time 81 | . . . . . . 81 . . . . Total Robot Build Rating . | . . . . . . . . . . . Part Schematics Acquired 15 | . . . . . . . . . 15 . Parts Built . | . . . . . . . . . . . Authchips . | . . . . . . . . . . . Time . | . . . . . . . . . . . Total Part Build Rating . | . . . . . . . . . . . Parts Repaired . | . . . . . . . . . . . Time . | . . . . . . . . . . . Parts Recycled . | . . . . . . . . . . . Recycled Matter . | . . . . . . . . . . . Retrieved Matter . | . . . . . . . . . . . Retrieved Components . | . . . . . . . . . . . Parts Scanalyzed . | . . . . . . . . . . . Part Schematics Acquired . | . . . . . . . . . . . Parts Damaged . | . . . . . . . . . . . Bothacking | -11 -10 -10 -10 -9 -8 -7 -7 -7 -7 -7 ------------ Run | Jun Mat Min Exi Min Mat Fac Low Low Zio Dee Used RIF Installer . | . . . . . . . . . . . Robots Hacked . | . . . . . . . . . . . Non-combat . | . . . . . . . . . . . Combat . | . . . . . . . . . . . Robot Hacks Applied . | . . . . . . . . . . . Relay Couplers Released . | . . . . . . . . . . . Fabnet Peak Effective % . | . . . . . . . . . . . Robots Rewired . | . . . . . . . . . . . Allies Hacked . | . . . . . . . . . . . Hacks Repelled . | . . . . . . . . . . . Allies | -11 -10 -10 -10 -9 -8 -7 -7 -7 -7 -7 -------- Run | Jun Mat Min Exi Min Mat Fac Low Low Zio Dee Total Allies 2 | . . . . . . . . . 2 . Largest Group 2 | . . . . . . . . . 2 2 Highest-Rated Group 192 | . . . . . . . . . 192 192 Highest-Rated Ally 96 | . . . . . . . . . 96 96 Total Orders . | . . . . . . . . . . . Ally Attacks 18 | . . . . . . . . . . 18 Total Damage 764 | . . . . . . . . . . 764 Kills 7 | . . . . . . . . . . 7 Allies Corrupted 1 | . . . . . . . . . . 1 Allies Melted . | . . . . . . . . . . . Intel | -11 -10 -10 -10 -9 -8 -7 -7 -7 -7 -7 ------- Run | Jun Mat Min Exi Min Mat Fac Low Low Zio Dee Robot Analysis Total . | . . . . . . . . . . . Derelict Logs Recovered 1 | . . . . . . . . . 1 . Drone Launches . | . . . . . . . . . . . Drone Recoveries . | . . . . . . . . . . . Exploration | -11 -10 -10 -10 -9 -8 -7 -7 -7 -7 -7 ------------- Run | Jun Mat Min Exi Min Mat Fac Low Low Zio Dee Turns Passed 1978 | 16 21 23 109 5 100 160 72 91 355 1026 Spaces Moved 3430 | 24 41 46 213 9 191 350 215 250 937 1154 Core 670 | 23 41 46 213 9 191 24 . . . 123 Treads 1 | 1 . . . . . . . . . . Legs 441 | . . . . . . . . . . 441 Wheels . | . . . . . . . . . . . Hover . | . . . . . . . . . . . Flight 2318 | . . . . . . 326 215 250 937 590 Fastest Speed 30 | 50 50 50 50 50 50 32 32 30 30 32 Average Speed 44 | 54 50 50 50 50 50 34 32 31 31 60 Slowest Speed 160 | 160 50 50 50 50 50 50 32 34 32 115 Overloaded Moves 1 | . . . . . . . . . . 1 Propulsion Burnouts . | . . . . . . . . . . . Robots Hopped 2 | . . . . . . 2 . . . . Cave-ins Triggered . | . . . . . . . . . . . Exploration Rate (%) 36 | 3 20 18 60 9 29 15 44 45 80 74 Regions Visited 10 Branch Regions 7 Pre-discovered Areas 2 | . . . . . 1 . . . 1 . Known Exits Taken 1 | . . . . . . 1 . . . . Unknown Exits Taken 9 | 1 1 1 1 1 1 . 1 1 1 . Scrap Searched 8 | . . . . . . . 3 2 3 . Spaces Dug 12 | . . . . . . 7 . . 3 2 Terrain Destroyed 41 | . . . . . . 7 . 29 3 2 Melee 12 | . . . . . . 7 . . 3 2 Projectile . | . . . . . . . . . . . AOE 29 | . . . . . . . . 29 . . Terrain Rammed . | . . . . . . . . . . . Walls Destroyed . | . . . . . . . . . . . Machines Disabled . | . . . . . . . . . . . Actions | -11 -10 -10 -10 -9 -8 -7 -7 -7 -7 -7 --------- Run | Jun Mat Min Exi Min Mat Fac Low Low Zio Dee Total 3792 | 25 40 45 214 8 194 368 217 258 976 1447 Wait 237 | . . . . . . . . . 22 215 Move 3416 | 23 40 45 212 8 190 345 214 249 936 1154 Hop 2 | . . . . . . 2 . . . . Pick Up 14 | . . . 2 . 1 3 . 2 1 5 Fast Attach 23 | 2 . . . . . 7 1 2 2 9 Attach 12 | . . . . . . 1 1 1 1 8 Detach 6 | . . . . . . . 1 . . 5 Swap . | . . . . . . . . . . . Drop 23 | . . . . . . . . 2 2 19 Fire 2 | . . . . . . . . 2 . . Melee 54 | . . . . . . 10 . . 12 32 Ram 3 | . . . . . 3 . . . . . Kick . | . . . . . . . . . . . Crush . | . . . . . . . . . . . Escape Stasis . | . . . . . . . . . . . Rewire . | . . . . . . . . . . . Trap . | . . . . . . . . . . . Miscellaneous . | . . . . . . . . . . . Route ------- -11/Junkyard -10/Materials -10/Mines -10/Exiles -9/Mines -8/Materials -7/Factory (discovered 3 exits: Sto / *Low x2) -7/Lower Caves -7/Lower Caves -7/Zion -7/Deep Caves (discovered 1 exit: [*Pro]) History --------- Turn | Location | Event 10 | -11/Junkyard | Discovered new exit (range 14) 17 | -11/Junkyard | Entered Materials 32 | -10/Materials | Discovered new exit (range 12) 38 | -10/Materials | Entered Mines 59 | -10/Mines | Deemed a non-threat by the Exiles lab entrance 59 | -10/Mines | Discovered new exit (range 5) 61 | -10/Mines | Entered Exiles 74 | -10/Exiles | Met 8R-AWN 82 | -10/Exiles | Met EX-HEX 97 | -10/Exiles | Met EX-BIN 103 | -10/Exiles | Aligned with FarCom system 103 | -10/Exiles | Given EX-Vault access code 116 | -10/Exiles | Opened EX-Vault 119 | -10/Exiles | Found Potential Leg 121 | -10/Exiles | Found Potential Leg 133 | -10/Exiles | Warned to stay clear of 0b10 Research branches 147 | -10/Exiles | Met EX-DEC 164 | -10/Exiles | Discovered new exit (range 14) 170 | -10/Exiles | Left Exiles lab with Potential Leg 170 | -10/Exiles | Entered Mines 170 | -9/Mines | Discovered new exit (range 9) 175 | -9/Mines | Entered Materials 175 | -8/Materials | Evolved 4 slots: Power x1, Propulsion x2, Utility x1 267 | -8/Materials | Discovered new exit (range 15) 275 | -8/Materials | Entered Factory 275 | -7/Factory | Evolved 2 slots: Utility x2 310 | -7/Factory | Build established: Mutant 377 | -7/Factory | Identified exit to Storage 377 | -7/Factory | Identified exit to Lower Caves 435 | -7/Factory | Entered Lower Caves 445 | -7/Lower Caves | Encountered a Warlord checkpoint 494 | -7/Lower Caves | Ambushed by research squad 497 | -7/Lower Caves | Discovered new exit (range 11) 507 | -7/Lower Caves | Entered another Lower Caves area 509 | -7/Lower Caves | Attracted the attention of an 0b10 outpost 594 | -7/Lower Caves | Discovered new exit (range 3) 598 | -7/Lower Caves | Entered Zion 660 | -7/Zion | Given the Hacking Drone Bay 724 | -7/Zion | Given A8's code to call for help 747 | -7/Zion | Learned location of Warlord (-4) 833 | -7/Zion | Discovered new exit (range 4) 836 | -7/Zion | Saw the warning signs outside the Deep Caves entrance 845 | -7/Zion | Build established: Hacker-Sprinter 934 | -7/Zion | Enhanced Grunt warped into view, answering call for help 937 | -7/Zion | Enhanced Grunt warped into view, answering call for help 953 | -7/Zion | Entered Deep Caves 953 | -7/Deep Caves | Accompanied by 2 allies 1074 | -7/Deep Caves | Z-Facility disabled 1163 | -7/Deep Caves | Found Prototype Protection 1163 | -7/Deep Caves | Identified Zio. Weapon Casing 1316 | -7/Deep Caves | Build established: Hacker-Mutant 1456 | -7/Deep Caves | Discovered new exit (range 6) 1806 | -7/Deep Caves | Spotted as-37150 1943 | -7/Deep Caves | Triggered Deep Caves wall 1944 | -7/Deep Caves | Exposed GOLEM chamber 1947 | -7/Deep Caves | Found GOLEM Unit 1952 | -7/Deep Caves | Found GOLEM Unit 1960 | -7/Deep Caves | Core integrity fell below 50% 1976 | -7/Deep Caves | Core integrity fell below 20% 1979 | -7/Deep Caves | Destroyed by as-37150 with Assembled Focal Cannon Last Messages --------------- 01785_ Dropped Com. Battery. 01785_ Acquired Com. Battery. 01808_ as-37150: "DSI9AT1D G8OHIBQ29FWG 26R186 QD12WHW8W33 TDK1 81FTS" 01811_ Mak. Flight Unit destroyed. 01811_ Xenon Bombardment Thruster destroyed. 01822_ Dropped Exp. Heat Sink. 01869_ VTOL Module destroyed. 01871_ Dropped Imp. Utility Shielding. 01871_ Dropped Imp. Reaction Control System. 01944_ Wall Chamber breached. 01944_ A GOLEM Unit tumbles out of the Wall Chamber. 01947_ Acquired GOLEM Unit. 01948_ A GOLEM Unit tumbles out of the Wall Chamber. 01951_ Dropped Com. Battery. 01951_ Acquired Com. Battery. 01952_ Acquired GOLEM Unit. 01955_ EB-5XX(g) destroyed. 01958_ Dropped Hvy. Flail. 01958_ VTOL Module destroyed. 01959_ as-28441 destroyed. Map ----- +----------------------------------------------------+ | ??##### #???# #????### ### ####???? | | ??????## ##### ##???# ## #???# | | ???????## ### ##??# ## #??## | | ????????## " #?## #??# ## ## #??# | | ?????????## """ #?## #??#! #### ##?# | | ??????????## "" ### ####! #??## #?# | | ?????####### #???# #?## | | ????## ## #??## #??# | | ???## ## ########### ## ##??? | | ???# #### ##?????## ##?###???? | | ??## ##?##%% ##?????## ###??????? | | ?## #### % ##??????# ### ##?????# | | ?# ## ##??????## ###?# #????## | | ?# ## #######?###???# #????# | | ?# !#### ## ###????## ##????# | | ## ## #??#" ###### ##???## | | # ## #??# ## % ##### | | # ### #??# a ## " | | #"##?# #??# "#a # """ | | ###### #??# ### "" % % | | #??# #?## ### | | #??# #?## a ## ## | | ##?# ### ### ##### #### | | ##### ### ## ##?# ##???# #?# | | ????## ### ## ###### ##???## #?# | | ?????# #####?###### @;### #????# ##?? | | ?????## ##??????????## #== #????# ##??? | | ??????####????????????#####< # ###????######???? | | ??????????????????????????########???????????????? | | ?????????????????????????????????????????????????? | | ?????????????????????????????????????????????????? | | | | | | | | | | | | | | | | | | | | | | | | | | | | | | | | | | | | | | | +----------------------------------------------------+ Best States ------------- Heat Dissipation 60 Energy Generation 32 Energy Capacity 300 Matter Stores 300 Matter Capacity 300 Sight Range 16 Terrain Scan Density 10 Armor Coverage 150 Utility Shielding 66 Weapon Shielding 100 Evasion (%) 73 Offensive Hacking 10 Defensive Hacking 20 Item Schematics ----------------- Mak. Armor Plating | -7/Zion | Archive Imp. Proton Missile Launcher | -7/Zion | Archive System Restoration Module | -7/Zion | Archive Mapping Drone Bay | -7/Zion | Archive Adv. Cooling System | -7/Zion | Archive Mak. Shrapnel Gun | -7/Zion | Archive Imp. Cryofiber Web | -7/Zion | Archive Imp. Carbon-fiber Leg | -7/Zion | Archive Matter Compressor | -7/Zion | Archive Mak. Leg | -7/Zion | Archive Adv. Signal Interpreter | -7/Zion | Archive Coolant Injector | -7/Zion | Archive Enh. Optical Array | -7/Zion | Archive Plasma Cannon | -7/Zion | Archive Power Sword | -7/Zion | Archive Robot Schematics ------------------ S-27 Virus | -7/Zion | Archive Y-54 Guardian | -7/Zion | Archive B-48 Gladiator | -7/Zion | Archive G-73 Enforcer | -7/Zion | Archive Fabricated ------------ Nothing Alien Tech Used ----------------- None Achievements -------------- None Challenges ------------ None Game ------ Seed SigixRemoteAutocannon Manual? 0 Play Time 00:29:06 Cumulative 171.0 hours Start 2023.05.03 @ 16:28:21 End 2023.05.04 @ 00:13:44 Sessions 3 Manual Loads 0 Difficulty Rogue Special Mode None Game No. 502 Rogue 502 Adventurer 0 Explorer 0 Win Type - Total 8 Types 7/0/0/1/0/0/0/0/0 Lore% 70 Gallery% 74 Achievement% 65 Wizard Run 0 Options --------- ASCII 0 Keyboard 0 Movement Numpad Keybinds 0 Fullscreen 1 Font 16/SmallcapsGlow Map View 75x55 Tactical HUD 1 Map Filters NONE Filters NONE Steam 1 RUN: 55d2c05a-58e1-4bfe-867a-5f1e61e09c16